bitfinex/quotes_SOLUSD_20230111
["timestamp","ask_amount","ask_price","bid_price","bid_amount"]
[1673476820659,46.93,15.985,15.971,17.0]
[1673476820866,46.93,15.985,15.97,171.17287211]
[1673476821289,117.4496,15.984,15.97,171.17287211]
[1673476822550,48.86,15.983,15.97,171.17287211]
[1673476824446,48.86,15.983,15.97,26.56]
[1673476825493,17.0,15.982,15.97,26.56]
[1673476825705,1.92,15.981,15.97,26.56]
[1673476826787,48.86,15.981,15.97,26.56]
[1673476827916,17.0,15.98,15.97,26.56]
[1673476828246,48.87,15.979,15.97,26.56]
[1673476828981,17.0,15.978,15.969,4.34623332]
[1673476829172,47.91,15.977,15.969,4.34623332]
[1673476829379,114.4599,15.976,15.969,4.34623332]
[1673476829595,46.96,15.975,15.969,4.34623332]
[1673476833504,113.4999,15.976,15.969,4.34623332]
[1673476833935,46.96,15.975,15.969,4.34623332]
[1673476835392,113.4999,15.976,15.969,4.34623332]
[1673476835606,46.96,15.975,15.969,4.34623332]
[1673476836026,113.4999,15.976,15.969,4.34623332]
[1673476836234,46.96,15.975,15.969,4.34623332]
[1673476837204,113.4999,15.976,15.969,4.34623332]
[1673476837394,46.96,15.975,15.969,4.34623332]
[1673476837608,113.4999,15.976,15.969,4.34623332]
[1673476839911,113.4999,15.976,15.97,17.82]
[1673476846549,46.95,15.978,15.97,17.82]
[1673476846861,113.8082,15.979,15.97,17.82]
[1673476847072,46.95,15.978,15.97,17.82]
[1673476848021,113.8082,15.979,15.97,17.82]
[1673476856309,113.8082,15.979,15.971,192.55064542]
[1673476858436,113.8082,15.979,15.969,4.34623332]
[1673476858629,46.95,15.978,15.969,4.34623332]
[1673476858840,113.8082,15.979,15.969,4.34623332]
[1673476859913,48.87,15.978,15.969,4.34623332]
[1673476862746,17.0,15.977,15.969,4.34623332]
[1673476862952,48.88,15.976,15.969,4.34623332]
[1673476863166,157.3611,15.976,15.969,4.34623332]
[1673476872515,17.0,15.975,15.969,4.34623332]
[1673476872727,48.88,15.974,15.969,4.34623332]
[1673476872938,48.88,15.974,15.951,80.07383998]
[1673476873266,48.88,15.974,15.956,26.60296802]
[1673476873576,108.4811,15.976,15.957,47.01]
[1673476874104,108.4811,15.976,15.961,47.0]
[1673476874318,108.4811,15.976,15.962,18.92]
[1673476874525,108.4811,15.976,15.963,46.99]
[1673476874710,108.4811,15.976,15.964,18.92]
[1673476877461,108.4811,15.976,15.965,46.99]
[1673476877672,108.4811,15.976,15.964,18.92]
[1673476877673,108.4811,15.976,15.966,17.0]
[1673476877866,108.4811,15.976,15.964,18.92]
[1673476878948,108.4811,15.976,15.97,3.25]
[1673476879574,46.94,15.983,15.97,3.25]
[1673476879766,20.0,15.982,15.97,3.25]
[1673476880097,46.94,15.981,15.97,3.25]
[1673476880516,46.94,15.983,15.97,3.25]
[1673476881038,46.92,15.988,15.97,3.25]
[1673476882091,46.92,15.988,15.97,13.25]
[1673476882505,46.94,15.983,15.97,13.25]
[1673476886930,46.92,15.989,15.971,46.97]
[1673476887120,46.91,15.991,15.972,38.92]
[1673476887333,46.91,15.991,15.973,46.97]
[1673476887661,46.91,15.991,15.974,38.92]
[1673476887875,46.91,15.991,15.975,46.96]
[1673476888088,46.91,15.991,15.976,37.0]
[1673476888509,46.91,15.991,15.976,56.14496728]
[1673476888818,117.7922,15.992,15.98,13.24]
[1673476889034,46.9,15.995,15.981,17.0]
[1673476889243,1250.0,15.996,15.982,48.86]
[1673476889449,1250.0,15.996,15.983,17.0]
[1673476891342,1250.0,15.996,15.984,21.06496728]
[1673476891557,1250.0,15.996,15.985,17.0]
[1673476891868,46.89,15.998,15.985,17.0]
[1673476891869,46.89,15.998,15.99,13.36]
[1673476892188,13.38,16.01,15.99,13.36]
[1673476892189,163.3634,16.007,15.99,13.36]
[1673476893018,17.0,16.006,15.99,13.36]
[1673476893230,46.87,16.005,15.99,13.36]
[1673476893439,17.0,16.004,15.99,13.36]
[1673476893757,46.88,16.003,15.99,13.36]
[1673476894415,1.92,16.002,15.99,13.36]
[1673476894609,46.88,16.001,15.99,13.36]
[1673476895780,1.92,16.002,15.99,13.36]
[1673476895971,46.88,16.001,15.99,13.36]
[1673476896183,46.88,16.001,15.99,32.50496728]
[1673476896393,46.87,16.006,15.991,17.0]
[1673476896828,46.87,16.006,15.991,36.14496728]
[1673476897044,46.87,16.006,15.992,94.2684593]
[1673476897241,46.87,16.006,15.993,17.0]
[1673476897448,116.4934,16.007,15.993,36.14496728]
[1673476897874,116.4934,16.007,15.994,19.14496728]
[1673476898708,116.4934,16.007,15.993,17.0]
[1673476898939,46.87,16.006,15.993,17.0]
[1673476899146,116.4934,16.007,15.994,1.92]
[1673476899359,116.4934,16.007,15.993,36.14496728]
[1673476899549,46.87,16.006,15.993,36.14496728]
[1673476899754,46.87,16.006,15.993,17.0]
[1673476899970,46.86,16.01,15.994,21.06496728]
[1673476900180,46.86,16.01,15.995,17.0]
[1673476900394,46.86,16.01,15.996,1.92]
[1673476900604,46.86,16.01,15.996,21.06496728]
[1673476900811,46.86,16.01,16.0,13.36]
[1673476901157,46.84,16.014,16.001,17.0]
[1673476901339,20.0,16.013,16.0,13.36]
[1673476901551,46.85,16.012,16.0,13.36]
[1673476902073,46.85,16.012,16.001,17.0]
[1673476903562,118.589,16.011,16.001,17.0]
[1673476903775,46.86,16.01,16.001,17.0]
[1673476905662,118.589,16.011,16.001,17.0]
[1673476906089,46.86,16.01,16.001,17.0]
[1673476906513,46.86,16.01,16.0,17.7]
[1673476907757,46.86,16.01,15.991,46.91]
[1673476908716,46.84,16.014,16.0,17.74]
[1673476908927,113.1582,16.015,16.001,46.88]
[1673476909129,113.1582,16.015,16.001,116.34742658]
[1673476909339,113.1582,16.015,16.002,69.46742658]
[1673476909768,113.1582,16.015,16.003,20.10496728]
[1673476909960,46.84,16.014,16.003,19.14496728]
[1673476910175,46.84,16.014,16.0,17.72]
[1673476910702,46.84,16.014,16.0,88.68]
[1673476910912,46.84,16.014,16.001,20.10496728]
[1673476911329,46.84,16.014,16.002,17.0]
[1673476911753,46.84,16.014,16.002,36.14496728]
[1673476911950,113.1582,16.015,16.002,133.34742658]
[1673476912388,113.1582,16.015,16.002,86.46742658]
[1673476912713,46.84,16.014,16.002,86.46742658]
[1673476912914,46.82,16.023,16.002,69.46742658]
[1673476913112,19.14496728,16.021,16.002,50.3224593]
[1673476913323,108.961,16.026,16.002,50.3224593]
[1673476913324,162.6603,16.02,16.002,50.3224593]
[1673476914080,17.0,16.019,16.002,50.3224593]
[1673476914283,48.75,16.018,16.002,50.3224593]
[1673476914505,20.0,16.017,16.002,50.3224593]
[1673476914808,46.84,16.016,16.003,18.92]
[1673476915020,46.83,16.018,16.003,65.8]
[1673476915213,46.83,16.018,16.003,17.0]
[1673476915426,46.83,16.018,16.001,19.14496728]
[1673476915632,46.83,16.018,16.0,124.02503469]
[1673476915633,21.92,16.017,16.0,124.02503469]
[1673476915853,46.84,16.016,16.0,88.68]
[1673476916064,21.92,16.015,16.0,88.68]
[1673476916279,46.84,16.014,16.0,88.68]
[1673476916490,20.0,16.013,16.0,88.68]
[1673476916703,46.85,16.012,16.0,88.68]
[1673476916918,46.85,16.012,16.0,7.72]
[1673476916919,119.0759,16.011,16.0,7.72]
[1673476917134,119.0759,16.011,16.0,17.7]
[1673476917860,119.0759,16.011,16.001,17.0]
[1673476919345,119.0759,16.011,16.001,36.14496728]
[1673476919652,46.86,16.01,16.0,88.55]
[1673476919865,46.86,16.01,16.0,17.61]
[1673476927434,46.86,16.01,16.0,27.61]
[1673476927953,113.9103,16.02,16.001,67.94496728]
[1673476928170,119.6418,16.019,16.01,17.73]
[1673476929544,119.6418,16.019,16.01,88.72]
[1673476929744,119.6418,16.019,16.011,17.0]
[1673476930496,119.6418,16.019,16.011,67.3224593]
[1673476932272,113.9103,16.02,16.012,19.14496728]
[1673476932484,113.9103,16.02,16.011,50.3224593]
[1673476932688,113.9103,16.02,16.01,88.72]
[1673476932893,113.9103,16.02,16.011,17.0]
[1673476934465,46.81,16.026,16.012,69.46742658]
[1673476934690,110.9263,16.027,16.02,17.72]
[1673476937427,110.9263,16.027,16.021,17.0]
[1673476938375,110.9263,16.027,16.02,17.72]
[1673476938687,46.8,16.028,16.02,36.86496728]
[1673476938899,111.641,16.036,16.021,17.0]
[1673476939114,46.78,16.035,16.021,17.0]
[1673476941194,46.78,16.035,16.021,14.5]
[1673476943320,46.8,16.028,16.021,14.5]
[1673476943523,46.78,16.035,16.021,14.5]
[1673476944779,1.11865073,16.029,16.021,14.5]
[1673476945836,1.11865073,16.029,16.022,38.28993456]
[1673476946049,1.11865073,16.029,16.023,17.0]
[1673476946453,1.11865073,16.029,16.023,36.14496728]
[1673476948148,1.11865073,16.029,16.023,17.0]
[1673476955586,1.11865073,16.029,16.022,50.3224593]
[1673476955587,1.11865073,16.029,16.02,88.84]
[1673476955805,1.11865073,16.029,16.02,17.88]
[1673476959910,46.8,16.028,16.02,17.88]
[1673476960451,112.22555073,16.029,16.02,17.88]
[1673476961059,46.8,16.028,16.02,17.88]
[1673476961691,112.22555073,16.029,16.02,17.88]
[1673476962008,46.8,16.028,16.02,17.88]
[1673476962436,112.22555073,16.029,16.02,17.88]
[1673476962848,112.22555073,16.029,16.02,13.19]
[1673476964741,112.22555073,16.029,16.021,17.0]
[1673476964967,112.22555073,16.029,16.02,32.33496728]
[1673476965283,112.22555073,16.029,16.02,13.19]
[1673476967058,112.22555073,16.029,16.021,17.0]
[1673476967990,1.11865073,16.029,16.021,17.0]
[1673476968206,1.11865073,16.029,16.022,147.48282204]
[1673476968415,1.11865073,16.029,16.022,44.6980134]
[1673476968639,1.11865073,16.029,16.021,17.0]
[1673476978300,1.11865073,16.029,16.021,63.82]
[1673476979044,1.11865073,16.029,16.021,17.0]
[1673476981979,1.11865073,16.029,16.021,63.82]
[1673476983539,1.11865073,16.029,16.021,82.96496728]
[1673476983749,1.11865073,16.029,16.021,63.82]
[1673476984943,0.61865073,16.029,16.021,82.96496728]
[1673476993009,0.61865073,16.029,16.022,21.06496728]
[1673476993219,0.61865073,16.029,16.023,63.82]
[1673476993451,0.61865073,16.029,16.024,1.92]
[1673476993658,0.61865073,16.029,16.025,46.81]
[1673476993872,0.61865073,16.029,16.026,17.0]
[1673476994075,0.61865073,16.029,16.027,46.81]
[1673476994286,0.61865073,16.029,16.028,17.0]
[1673476994495,117.4671,16.041,16.028,36.14496728]
[1673476994712,117.4671,16.041,16.03,13.28]
[1673476995325,46.75,16.046,16.03,13.28]
[1673476995326,46.75,16.046,16.03,66.3]
[1673476995540,20.0,16.045,16.031,18.92]
[1673476996087,114.2971,16.046,16.04,13.28]
[1673476996295,46.75,16.045,16.04,13.28]
[1673476996499,114.2971,16.046,16.04,13.28]
[1673476997016,161.0471,16.046,16.04,13.28]
[1673476997432,114.2971,16.046,16.04,13.28]
[1673476997645,161.0471,16.046,16.04,13.28]
[1673476998287,0.96,16.045,16.04,13.28]
[1673476998501,1.92,16.045,16.031,37.60081526]
[1673476998812,1.92,16.045,16.032,17.0]
[1673476999978,0.96,16.045,16.032,17.0]
[1673477000162,161.0471,16.046,16.032,36.14496728]
[1673477003338,1.92,16.045,16.032,17.0]
[1673477003856,46.76,16.044,16.032,17.0]
[1673477004180,161.0471,16.046,16.032,82.93496728]
[1673477004485,114.2971,16.046,16.032,82.93496728]
[1673477004908,114.2971,16.046,16.033,19.14496728]
[1673477005104,114.2971,16.046,16.034,63.79]
[1673477005524,114.2971,16.046,16.035,19.14496728]
[1673477005855,114.2971,16.046,16.036,17.0]
[1673477006700,114.2971,16.046,16.036,36.14496728]
[1673477006887,161.0471,16.046,16.036,17.0]
[1673477007102,161.0471,16.046,16.036,36.14496728]
[1673477007309,161.0471,16.046,16.036,17.0]
[1673477007520,114.2971,16.046,16.036,36.14496728]
[1673477007841,114.2971,16.046,16.036,17.0]
[1673477008041,46.75,16.045,16.036,17.0]
[1673477008248,46.75,16.045,16.035,17.0]
[1673477008463,114.2971,16.046,16.035,17.0]
[1673477008681,114.2971,16.046,16.035,36.14496728]
[1673477008903,114.2971,16.046,16.036,19.14496728]
[1673477009216,114.2971,16.046,16.037,17.0]
[1673477009537,114.2971,16.046,16.032,46.79]
[1673477009747,114.2971,16.046,16.034,19.14496728]
[1673477009945,46.75,16.045,16.034,19.14496728]
[1673477010150,20.0,16.044,16.031,37.60081526]
[1673477010366,46.76,16.043,16.031,19.14496728]
[1673477010586,20.0,16.042,16.031,19.14496728]
[1673477010790,46.77,16.041,16.031,19.14496728]
[1673477011213,46.75,16.045,16.031,19.14496728]
[1673477012269,46.75,16.045,16.032,17.0]
[1673477012792,46.75,16.045,16.032,36.14496728]
[1673477013008,46.75,16.045,16.032,19.14496728]
[1673477013323,1.92,16.044,16.03,17.65]
[1673477013518,46.76,16.043,16.03,17.65]
[1673477013931,46.76,16.043,16.03,36.79496728]
[1673477014155,46.75,16.045,16.03,71.13711587]
[1673477014475,46.75,16.045,16.03,51.99214859]
[1673477015195,0.96,16.044,16.03,51.99214859]
[1673477015532,46.76,16.043,16.03,51.99214859]
[1673477015840,46.76,16.043,16.031,17.0]
[1673477016242,114.2971,16.046,16.032,65.93496728]
[1673477016459,114.2971,16.046,16.033,17.0]
[1673477016880,46.75,16.045,16.033,17.0]
[1673477018682,46.75,16.045,16.033,36.14496728]
[1673477018869,46.75,16.045,16.033,17.0]
[1673477019312,46.75,16.045,16.032,17.0]
[1673477020559,114.2971,16.046,16.032,17.0]
[1673477020560,114.2971,16.046,16.033,65.93496728]
[1673477020764,114.2971,16.046,16.034,17.0]
[1673477020975,114.2971,16.046,16.034,81.98857275]
[1673477021819,114.2971,16.046,16.035,20.10496728]
[1673477022045,114.2971,16.046,16.036,17.0]
[1673477022257,46.73,16.055,16.036,36.14496728]
[1673477022474,108.5135,16.054,16.037,19.14496728]
[1673477022670,66.73,16.053,16.038,17.0]
[1673477022888,66.73,16.053,16.034,45.84360547]
[1673477023213,66.73,16.053,16.037,19.14496728]
[1673477024367,66.73,16.053,16.038,17.0]
[1673477024893,66.73,16.053,16.038,36.14496728]
[1673477026366,1.92,16.052,16.038,19.14496728]
[1673477026579,46.74,16.051,16.038,19.14496728]
[1673477027314,1.92,16.05,16.038,19.14496728]
[1673477027524,1.92,16.05,16.033,46.79]
[1673477027837,1.92,16.05,16.031,65.94496728]
[1673477028028,46.74,16.049,16.031,46.8]
[1673477028239,1.92,16.048,16.033,19.14496728]
[1673477028450,46.75,16.047,16.031,46.8]
[1673477028658,121.0805,16.046,16.029,81.14214859]
[1673477028871,46.75,16.045,16.029,81.14214859]
[1673477029078,46.75,16.045,16.03,66.28]
[1673477029079,1.92,16.044,16.03,66.28]
[1673477029292,1.92,16.044,16.03,13.31]
[1673477029506,46.76,16.043,16.03,13.31]
[1673477030126,21.92,16.042,16.021,46.82]
[1673477030345,46.77,16.041,16.025,19.14496728]
[1673477030562,0.96,16.04,16.025,19.14496728]
[1673477030773,47.73,16.039,16.025,19.14496728]
[1673477030966,46.75,16.045,16.03,13.25]
[1673477031175,116.1181,16.047,16.03,13.25]
[1673477031176,156.7549,16.046,16.03,66.39]
[1673477031400,156.7549,16.046,16.031,36.14496728]
[1673477031810,156.7549,16.046,16.032,19.14496728]
[1673477032020,156.7549,16.046,16.033,17.0]
[1673477032455,1.92,16.045,16.033,17.0]
[1673477032657,46.76,16.044,16.033,17.0]
[1673477033611,46.75,16.045,16.033,17.0]
[1673477033805,46.75,16.045,16.033,36.14496728]
[1673477036345,156.7549,16.046,16.033,36.14496728]
[1673477036744,1.92,16.045,16.033,36.14496728]
[1673477036950,1.92,16.045,16.033,19.14496728]
[1673477038211,46.76,16.044,16.033,19.14496728]
[1673477038646,46.75,16.045,16.033,19.14496728]
[1673477038850,1.92,16.044,16.033,19.14496728]
[1673477039063,1.92,16.044,16.03,66.39]
[1673477039273,1.92,16.044,16.031,19.14496728]
[1673477039696,46.76,16.043,16.031,19.14496728]
[1673477039916,1.92,16.042,16.031,19.14496728]
[1673477040315,0.96,16.042,16.031,19.14496728]
[1673477040528,110.0049,16.046,16.032,63.79]
[1673477040952,110.0049,16.046,16.033,19.14496728]
[1673477041153,110.0049,16.046,16.034,17.0]
[1673477041582,110.0049,16.046,16.035,19.14496728]
[1673477042424,110.0049,16.046,16.036,17.0]
[1673477042855,110.0049,16.046,16.036,36.14496728]
[1673477043381,110.0049,16.046,16.031,46.8]
[1673477043588,110.0049,16.046,16.036,19.14496728]
[1673477044966,110.0049,16.046,16.037,17.0]
[1673477045274,156.7549,16.046,16.032,19.14496728]
[1673477045485,156.7549,16.046,16.03,13.33]
[1673477045687,20.0,16.045,16.03,13.33]
[1673477045897,46.76,16.044,16.03,13.33]
[1673477046106,20.0,16.043,16.03,13.33]
[1673477046641,46.75,16.045,16.03,66.33]
[1673477046842,46.74,16.051,16.031,65.72]
[1673477047062,46.73,16.053,16.04,13.25]
[1673477047267,46.73,16.053,16.041,17.0]
[1673477049070,46.73,16.053,16.04,13.25]
[1673477051152,20.0,16.052,16.031,46.8]
[1673477051363,46.74,16.051,16.031,46.8]
[1673477052951,46.74,16.051,16.032,18.92]
[1673477053161,46.74,16.051,16.033,46.79]
[1673477053370,46.73,16.053,16.04,13.17]
[1673477053587,161.9721,16.054,16.041,17.0]
[1673477053796,115.2421,16.054,16.041,17.0]
[1673477054002,46.73,16.053,16.041,17.0]
[1673477055254,0.6511767,16.062,16.041,48.01674859]
[1673477055466,0.6511767,16.062,16.05,66.39]
[1673477055809,0.6511767,16.062,16.051,17.0]
[1673477056007,46.71,16.061,16.051,17.0]
[1673477056324,0.6511767,16.062,16.051,17.0]
[1673477057072,46.71,16.061,16.051,17.0]
[1673477057374,0.6511767,16.062,16.051,63.74]
[1673477057561,0.6511767,16.062,16.051,17.0]
[1673477058096,46.71,16.061,16.051,17.0]
[1673477061782,0.6511767,16.062,16.051,17.0]
[1673477063348,0.6511767,16.062,16.05,66.33]
[1673477063349,0.6511767,16.062,16.052,86.11571346]
[1673477063688,0.6511767,16.062,16.053,41.72472083]
[1673477064201,0.6511767,16.062,16.05,66.33]
[1673477064414,46.71,16.061,16.05,13.33]
[1673477066102,0.6511767,16.062,16.051,17.0]
[1673477066413,46.71,16.061,16.051,17.0]
[1673477066815,0.6511767,16.062,16.051,17.0]
[1673477067364,47.3511767,16.062,16.051,17.0]
[1673477067763,0.6511767,16.062,16.051,17.0]
[1673477067974,46.71,16.061,16.051,17.0]
[1673477068813,0.6511767,16.062,16.051,17.0]
[1673477069253,47.3511767,16.062,16.051,17.0]
[1673477070516,47.3511767,16.062,16.051,77.21632596]
[1673477077033,0.6511767,16.062,16.051,77.21632596]
[1673477078402,46.71,16.061,16.051,77.21632596]
[1673477078593,47.3511767,16.062,16.051,77.21632596]
[1673477078805,0.6511767,16.062,16.051,77.21632596]
[1673477079449,46.71,16.061,16.051,77.21632596]
[1673477080168,47.3511767,16.062,16.051,77.21632596]
[1673477081539,0.6511767,16.062,16.051,77.21632596]
[1673477081746,0.1511767,16.062,16.051,77.21632596]
[1673477082585,0.1511767,16.062,16.051,60.21632596]
[1673477083967,0.1511767,16.062,16.052,17.0]
[1673477084169,0.1511767,16.062,16.051,60.21632596]
[1673477084918,0.1511767,16.062,16.052,17.0]
[1673477087439,0.1511767,16.062,16.053,46.73]
[1673477087651,0.1511767,16.062,16.054,17.0]
[1673477087865,0.1511767,16.062,16.052,17.0]
[1673477092676,585.7,16.073,16.053,65.87496728]
[1673477092677,396.1,16.073,16.053,65.87496728]
[1673477092891,15.4757754,16.077,16.06,88.02]
[1673477093112,15.4757754,16.077,16.07,17.63]
[1673477093516,15.4757754,16.077,16.071,18.92]
[1673477093727,15.4757754,16.077,16.072,46.68]
[1673477093954,15.4757754,16.077,16.073,18.92]
[1673477094147,11.8525754,16.077,16.074,46.67]
[1673477094358,11.8525754,16.077,16.075,38.92]
[1673477094589,11.8525754,16.077,16.076,46.66]
[1673477094796,0.8525754,16.077,16.076,36.14496728]
[1673477094994,0.8525754,16.077,16.076,38.06496728]
[1673477095203,0.8525754,16.077,16.076,84.72496728]
[1673477095637,0.8525754,16.077,16.076,82.80496728]
[1673477095833,0.8525754,16.077,16.076,63.66]
[1673477096164,0.8525754,16.077,16.076,17.0]
[1673477096488,0.8525754,16.077,16.074,65.81496728]
[1673477096886,0.8525754,16.077,16.075,17.0]
[1673477097116,0.8525754,16.077,16.076,46.66]
[1673477097319,0.8525754,16.077,16.076,63.66]
[1673477097533,0.8525754,16.077,16.076,17.0]
[1673477098056,0.8525754,16.077,16.075,46.67]
[1673477098264,0.8525754,16.077,16.072,46.68]
[1673477098474,0.8525754,16.077,16.072,65.82496728]
[1673477098681,0.8525754,16.077,16.072,19.14496728]
[1673477099007,0.8525754,16.077,16.073,19.14496728]
[1673477099215,0.8525754,16.077,16.074,46.67]
[1673477099406,0.8525754,16.077,16.071,114.0032935]
[1673477100683,0.8525754,16.077,16.071,67.3232935]
[1673477100871,0.8525754,16.077,16.072,46.68]
[1673477101081,0.8525754,16.077,16.072,94.85832622]
[1673477101299,0.8525754,16.077,16.072,151.88842269]
[1673477101949,0.8525754,16.077,16.073,18.92]
[1673477102257,0.8525754,16.077,16.074,46.67]
[1673477102446,0.8525754,16.077,16.075,17.0]
[1673477102659,0.8525754,16.077,16.076,46.66]
[1673477102873,0.8525754,16.077,16.076,17.0]
[1673477106569,0.8525754,16.077,16.076,36.14496728]
[1673477107834,0.8525754,16.077,16.076,38.06496728]
[1673477108040,0.8525754,16.077,16.076,58.06496728]
[1673477108441,0.8525754,16.077,16.076,38.92]
[1673477109077,0.8525754,16.077,16.076,58.06496728]
[1673477109616,0.8525754,16.077,16.076,152.9032935]
[1673477109808,0.8525754,16.077,16.076,190.78842269]
[1673477110018,116.6326,16.092,16.076,144.12842269]
[1673477110241,116.6326,16.092,16.08,13.18]
[1673477110447,116.6326,16.092,16.081,0.96]
[1673477110668,116.6326,16.092,16.081,20.10496728]
[1673477110849,116.6326,16.092,16.082,19.14496728]
[1673477112150,46.6,16.098,16.083,17.0]
[1673477112343,46.6,16.098,16.084,1.92]
[1673477112551,46.6,16.098,16.09,13.06]
[1673477112767,118.2074,16.099,16.091,17.0]
[1673477112976,46.6,16.098,16.091,17.0]
[1673477113381,118.2074,16.099,16.091,17.0]
[1673477113589,46.6,16.098,16.091,17.0]
[1673477113794,46.6,16.098,16.09,13.06]
[1673477114529,46.6,16.098,16.09,63.83832622]
[1673477114746,46.6,16.098,16.09,103.28345541]
[1673477114950,46.6,16.098,16.091,19.14496728]
[1673477115170,46.59,16.1,16.091,19.14496728]
[1673477115377,46.59,16.1,16.092,17.0]
[1673477115593,46.59,16.1,16.091,17.0]
[1673477116454,46.57,16.108,16.092,60.51009647]
[1673477116658,113.0368,16.11,16.1,13.06]
[1673477116848,46.57,16.109,16.093,136.1729093]
[1673477117178,46.57,16.109,16.094,158.9929093]
[1673477117501,46.57,16.109,16.095,157.0729093]
[1673477117686,46.57,16.109,16.096,1.92]
[1673477117899,46.57,16.109,16.096,158.9929093]
[1673477118110,46.57,16.109,16.097,86.86791641]
[1673477118445,46.57,16.109,16.098,103.86791641]
[1673477118859,46.57,16.109,16.099,40.91846252]
[1673477119076,46.57,16.109,16.1,17.0]
[1673477121698,4.34188708,16.113,16.1,82.82]
[1673477121907,46.56,16.112,16.101,102.56693345]
[1673477122115,46.56,16.112,16.102,17.0]
[1673477122339,46.56,16.112,16.103,1.92]
[1673477122522,46.56,16.112,16.103,160.16136712]
[1673477122734,46.56,16.112,16.104,160.16136712]
[1673477123156,46.56,16.112,16.104,103.30760012]
[1673477123591,46.56,16.112,16.105,48.77478723]
[1673477124114,46.56,16.112,16.105,103.30760012]
[1673477124954,46.56,16.112,16.105,56.853767]
[1673477125273,46.56,16.112,16.1,48.77478723]
[1673477125463,46.56,16.112,16.09,65.79]
[1673477125674,46.56,16.112,16.09,13.07]
[1673477125897,13.07,16.11,16.09,13.07]
[1673477126223,13.07,16.11,16.086,45.48533289]
[1673477126224,371.63651,16.109,16.086,45.48533289]
[1673477126440,5.74021,16.108,16.081,46.65]
[1673477126650,13.17,16.1,16.08,13.22]
[1673477126967,158.2463,16.099,16.08,13.22]
[1673477130332,158.2463,16.099,16.081,17.0]
[1673477131909,17.0,16.098,16.08,13.22]
[1673477132102,48.52,16.097,16.08,13.22]
[1673477132522,1.92,16.097,16.08,13.22]
[1673477132730,46.61,16.096,16.08,13.22]
[1673477132959,1.92,16.095,16.081,17.0]
[1673477133272,46.61,16.094,16.081,17.0]
[1673477133671,46.6,16.098,16.081,17.0]
[1673477135479,1.92,16.097,16.08,13.22]
[1673477135670,46.61,16.096,16.08,13.22]
[1673477135878,1.92,16.095,16.08,13.22]
[1673477136095,46.61,16.094,16.08,32.36496728]
[1673477136317,1.92,16.093,16.08,32.36496728]
[1673477136509,46.62,16.092,16.08,32.36496728]
[1673477136721,46.6,16.098,16.08,32.36496728]
[1673477136936,1.92,16.097,16.08,32.36496728]
[1673477137147,46.61,16.096,16.08,32.36496728]
[1673477138001,46.61,16.096,16.081,17.0]
[1673477138216,1.92,16.097,16.081,17.0]
[1673477138417,46.61,16.096,16.081,36.14496728]
[1673477138626,46.61,16.096,16.081,82.79496728]
[1673477140213,46.61,16.096,16.081,36.14496728]
[1673477144311,1.92,16.097,16.081,36.14496728]